bitfinex-derivatives/quotes_ETHF0:USTF0_20250327
["timestamp","ask_amount","ask_price","bid_price","bid_amount"]
[1743064248740,1.325,2028.2,2028.1,3.00587]
[1743064253941,2.31097,2028.2,2028.1,3.00587]
[1743064254141,2.31097,2028.2,2028.1,2.33167]
[1743064254342,2.31097,2028.2,2028.1,1.3457]
[1743064255141,2.31097,2028.2,2028.1,2.33172]
[1743064257043,2.31097,2028.2,2028.1,0.98602]
[1743064258041,0.98602,2028.1,2028.0,2.37463]
[1743064258338,0.98617,2027.8,2027.7,4.19398]
[1743064258546,0.98616,2027.9,2027.8,0.98613]
[1743064258734,2.37626,2027.9,2027.8,2.37473]
[1743064258936,1.3901,2027.9,2027.8,2.37473]
[1743064261945,3.151,2028.1,2028.0,0.98607]
[1743064262238,2.33692,2028.2,2028.1,0.98602]
[1743064263945,1.3509,2028.2,2028.1,0.98602]
[1743064264246,2.33687,2028.2,2028.1,0.98602]
[1743064265045,1.3509,2028.2,2028.1,0.98602]
[1743064265344,2.33687,2028.2,2028.1,0.98602]
[1743064265933,1.3509,2028.2,2028.1,0.98602]
[1743064266138,2.33687,2028.2,2028.1,0.98602]
[1743064266849,0.98602,2028.1,2028.0,2.32543]
[1743064267139,2.35282,2028.1,2028.0,0.98603]
[1743064272242,1.3668,2028.1,2028.0,1.65583]
[1743064272542,4.19374,2028.3,2028.2,0.98597]
[1743064272944,3.2078,2028.3,2028.2,0.98597]
[1743064273145,4.19372,2028.3,2028.2,2.37557]
[1743064273545,3.2078,2028.3,2028.2,2.37557]
[1743064273741,4.19372,2028.3,2028.2,2.37557]
[1743064273939,5.59792,2028.3,2028.2,2.37557]
[1743064275237,5.59792,2028.3,2028.2,0.98597]
[1743064277546,4.19372,2028.3,2028.2,0.98597]
[1743064278442,4.89812,2028.3,2028.2,0.98597]
[1743064279953,4.19372,2028.3,2028.2,0.98597]
[1743064282549,5.54222,2028.3,2028.2,0.98597]
[1743064286950,4.92988,2028.2,2027.4,3.2078]
[1743064287149,0.98622,2027.8,2027.7,1.391]
[1743064287345,0.98622,2027.8,2027.7,2.37722]
[1743064287546,3.67622,2027.8,2027.7,2.37722]
[1743064288447,3.67622,2027.8,2027.7,1.391]
[1743064288845,3.67622,2027.8,2027.7,2.37722]
[1743064289047,3.67622,2027.8,2027.7,1.391]
[1743064289250,6.82622,2027.8,2027.7,1.391]
[1743064289652,0.98631,2027.5,2027.4,41.78635]
[1743064289950,4.19411,2027.5,2027.4,41.78636]
[1743064290158,4.19411,2027.5,2027.4,0.98636]
[1743064290747,4.19411,2027.5,2027.4,2.31846]
[1743064290947,4.19411,2027.5,2027.4,1.3321]
[1743064291148,0.98636,2027.4,2027.3,0.00740722]
[1743064291347,3.02576,2027.4,2027.3,0.00740722]
[1743064292153,3.02576,2027.4,2027.3,1.33950722]
[1743064292753,3.02576,2027.4,2027.3,0.00740722]
[1743064292951,2.0394,2027.4,2026.7,2.46674]
[1743064293151,4.19431,2027.1,2027.0,1.3321]
[1743064293453,7.34531,2027.1,2027.0,1.3321]
[1743064293650,7.34531,2027.1,2027.0,2.31866]
[1743064294854,0.98661,2027.0,2026.9,2.34476]
[1743064295055,2.35321,2027.0,2026.9,2.34476]
[1743064301171,1.3666,2027.0,2026.9,2.34476]
[1743064302364,2.35316,2027.0,2026.9,2.34476]
[1743064302565,1.3666,2027.0,2026.9,2.34476]
[1743064303368,6.3588,2027.2,2027.1,0.98651]
[1743064303571,4.558,2027.2,2027.1,0.98651]
[1743064303765,7.709,2027.2,2027.1,0.98651]
[1743064303971,8.69546,2027.2,2027.1,1.63801]
[1743064304465,8.69546,2027.2,2027.0,1.4342]
[1743064304667,8.69546,2027.2,2027.0,2.42076]
[1743064304668,2.33671,2027.1,2027.0,2.42076]
[1743064304964,2.98571,2027.1,2027.0,2.42076]
[1743064305363,1.9992,2027.1,2027.0,2.42076]
[1743064305567,7.3453,2027.2,2027.1,0.98651]
[1743064305768,8.7588,2027.2,2027.1,2.29391]
[1743064308072,5.6078,2027.2,2027.1,2.29391]
[1743064308676,3.2078,2027.2,2027.1,2.29391]
[1743064308872,0.00740722,2027.3,2027.2,0.98646]
[1743064309072,0.00740722,2027.3,2027.2,3.67976]
[1743064309867,0.99381722,2027.3,2027.2,3.67976]
[1743064310068,0.98646,2027.2,2027.1,0.98647]
[1743064310267,2.35866,2027.2,2027.1,2.30327]
[1743064310475,3.69816,2027.2,2027.1,2.30327]
[1743064320080,0.99385722,2027.3,2027.2,0.98646]
[1743064320266,2.30045722,2027.3,2027.2,2.34956]
[1743064320472,0.99381722,2027.3,2027.2,2.34956]
[1743064320671,0.00740722,2027.3,2027.2,2.34956]
[1743064322377,1.4047,2027.8,2027.7,0.98622]
[1743064322681,7.34492,2027.9,2027.8,0.98617]
[1743064323578,7.34492,2027.9,2027.8,3.09447]
[1743064324381,4.19392,2027.9,2027.8,3.09447]
[1743064324780,5.54181,2028.0,2027.9,0.98612]
[1743064325083,1.64286722,2028.1,2028.0,0.98607]
[1743064325275,3.03796722,2028.1,2028.0,0.98607]
[1743064326585,0.00740722,2028.1,2028.0,0.98607]
[1743064328778,0.00740722,2028.1,2028.0,2.39507]
[1743064330183,0.99342722,2028.1,2028.0,2.39507]
[1743064330387,2.39172722,2028.1,2028.0,2.39507]
[1743064330681,1.40570722,2028.1,2028.0,2.39507]
[1743064332082,0.00740722,2028.1,2028.0,2.39507]
[1743064334386,1.36800722,2028.1,2028.0,2.39507]
[1743064334686,2.35402722,2028.1,2028.0,1.409]
[1743064334881,0.98607,2028.0,2027.9,0.98609]
[1743064335079,2.34667,2028.0,2027.9,2.32219]
[1743064336285,0.98612,2027.9,2027.8,0.00740722]
[1743064336585,3.66642,2027.9,2027.8,1.32490722]
[1743064336785,3.66642,2027.9,2027.8,2.31107722]
[1743064337185,6.87422,2027.9,2027.8,2.31107722]
[1743064337890,10.02422,2027.9,2027.8,1.32490722]
[1743064338191,10.02422,2027.9,2027.8,0.00740722]
[1743064339091,10.02422,2027.9,2027.8,0.99357722]
[1743064339279,10.02422,2027.9,2027.8,2.34547722]
[1743064339484,3.2078,2027.9,2027.8,2.34547722]
[1743064340581,0.00740722,2028.1,2028.0,0.98607]
[1743064341387,0.99342722,2028.1,2028.0,2.33797]
[1743064341582,2.32632722,2028.1,2028.0,2.33797]
[1743064341985,1.34030722,2028.1,2028.0,2.33797]
[1743064342489,2.32632722,2028.1,2028.0,2.33797]
[1743064343792,1.34030722,2028.1,2028.0,2.33797]
[1743064343999,2.32632722,2028.1,2028.0,2.33797]
[1743064344187,1.34030722,2028.1,2028.0,2.33797]
[1743064344387,2.32632722,2028.1,2028.0,2.33797]
[1743064345092,1.34030722,2028.1,2028.0,2.33797]
[1743064345295,2.32632722,2028.1,2028.0,2.33797]
[1743064346394,1.34030722,2028.1,2028.0,2.33797]
[1743064347288,0.00740722,2028.1,2028.0,2.33797]
[1743064348183,1.42520722,2028.1,2028.0,2.33797]
[1743064360204,0.00740722,2028.1,2028.0,2.33797]
[1743064362597,1.36910722,2028.1,2028.0,2.33797]
[1743064365310,2.05150722,2028.1,2028.0,2.33797]
[1743064367207,1.36910722,2028.1,2028.0,2.33797]
[1743064369101,0.00740722,2028.1,2028.0,2.33797]
[1743064382015,0.66110722,2028.1,2028.0,2.33797]
[1743064382317,2.02550722,2028.1,2028.0,2.33797]
[1743064388118,1.37180722,2028.1,2028.0,2.33797]
[1743064389310,2.35782722,2028.1,2028.0,2.33797]
[1743064389721,2.35782722,2028.1,2027.8,0.99357722]
[1743064389722,0.98612,2027.9,2027.8,0.99357722]
[1743064389918,0.98612,2027.9,2027.8,0.00740722]
[1743064390115,0.98631,2027.5,2027.4,0.98635]
[1743064390315,0.98636,2027.4,2027.3,2.32947]
[1743064390521,3.76796,2027.4,2027.3,2.32947]
[1743064390921,0.98651,2027.1,2027.0,4.19432]
[1743064391116,0.98651,2027.1,2027.0,0.98652]
[1743064391527,2.36731,2027.1,2027.0,0.98652]
[1743064392023,2.36731,2027.1,2027.0,2.33822]
[1743064392416,2.36731,2027.1,2027.0,0.98652]
[1743064397224,1.3808,2027.1,2027.0,0.98652]
[1743064398318,2.36731,2027.1,2027.0,0.98652]
[1743064399238,1.3808,2027.1,2027.0,0.98652]
[1743064399617,1.3943,2027.4,2027.1,0.98651]
[1743064399818,3.2078,2027.8,2027.7,0.98622]
[1743064400428,6.91011,2028.0,2027.9,0.98612]
[1743064400630,5.47781,2028.0,2027.9,0.98612]
[1743064403536,3.21520722,2028.1,2028.0,0.98607]
[1743064406839,3.21520722,2028.1,2028.0,2.30067]
[1743064409631,0.00740722,2028.1,2028.0,2.30067]
[1743064410028,0.99342722,2028.1,2028.0,2.30067]
[1743064411435,0.99342722,2028.1,2027.8,0.68040722]
[1743064411436,0.98612,2028.0,2027.8,0.68040722]
[1743064411639,0.98612,2027.9,2027.8,2.34832722]
[1743064411837,1.65002,2027.9,2027.8,0.00740722]
[1743064412038,1.65002,2027.9,2027.8,0.99357722]
[1743064415839,1.65002,2027.9,2027.8,0.00740722]
[1743064416844,1.65002,2027.9,2027.8,0.99357722]
[1743064417837,1.65002,2027.9,2027.8,0.00740722]
[1743064418041,1.65002,2027.9,2027.8,0.99357722]
[1743064418641,3.05892,2027.9,2027.8,0.99357722]
[1743064418948,3.05892,2027.9,2027.8,0.00740722]
[1743064419540,3.05892,2027.9,2027.8,0.99357722]
[1743064419735,3.05892,2027.9,2027.8,1.35360722]
[1743064419941,3.05892,2027.9,2027.8,2.33977722]
[1743064421657,3.05892,2027.9,2027.8,0.00740722]
[1743064421961,0.98636,2027.4,2027.3,1.66978]
[1743064422549,2.30686,2027.4,2027.3,1.66978]
[1743064423862,1.3205,2027.4,2027.3,1.66978]
[1743064424062,2.30686,2027.4,2027.3,1.66978]
[1743064429065,4.19413,2027.6,2027.5,0.98631]
[1743064429463,5.60993,2027.6,2027.5,0.98631]
[1743064429763,5.60993,2027.6,2027.5,2.36371]
[1743064432464,2.40213,2027.6,2027.5,2.36371]
[1743064433863,0.98631,2027.5,2027.4,0.98633]
[1743064434065,0.98636,2027.4,2027.3,2.4212]
[1743064434368,1.63936,2027.4,2027.3,2.4212]
[1743064434869,0.98646,2027.2,2027.1,0.99387722]
[1743064435858,1.66946,2027.2,2027.1,0.99387722]
[1743064437753,1.3275,2027.3,2027.2,0.98646]
[1743064437969,4.1942,2027.4,2027.3,0.98641]
[1743064438161,4.1942,2027.4,2027.3,1.69441]
[1743064438563,4.1942,2027.4,2027.3,2.98971]
[1743064440870,4.1942,2027.4,2027.3,1.2953]
[1743064441067,4.8878,2027.4,2027.3,1.2953]
[1743064443972,0.98646,2027.2,2027.1,0.00740722]
[1743064444171,0.98646,2027.2,2027.1,0.99391722]
[1743064444672,2.39436,2027.2,2027.1,0.99391722]
[1743064449376,2.39436,2027.2,2027.1,0.00740722]
[1743064449577,2.39436,2027.2,2027.1,0.99391722]
[1743064449874,2.39436,2027.2,2027.1,0.00740722]
[1743064450061,2.39436,2027.2,2027.1,0.99391722]
[1743064450266,2.39436,2027.2,2027.1,0.00740722]
[1743064450667,2.39436,2027.2,2027.1,2.31891722]
[1743064451575,3.2078,2027.4,2027.1,2.31891722]
[1743064451778,3.2078,2027.4,2027.3,0.98641]
[1743064452474,3.2078,2027.4,2027.3,2.41581]
[1743064452777,3.2078,2028.0,2027.8,0.98612]
[1743064452969,3.2078,2028.0,2027.9,0.98612]
[1743064456777,0.99346722,2028.1,2028.0,0.98607]
[1743064459673,0.00740722,2028.1,2028.0,0.98607]
[1743064461472,0.00740722,2028.1,2028.0,41.78607]
[1743064462381,0.00740722,2028.1,2028.0,43.89607]
[1743064462683,3.2078,2028.3,2028.2,0.98597]
[1743064463876,1.35460722,2028.5,2028.4,0.98588]
[1743064464275,2.34043722,2028.5,2028.4,0.98588]
[1743064466477,0.98592,2028.4,2028.3,0.98588]
[1743064466681,0.98592,2028.3,2028.2,0.99334722]
[1743064466876,2.35722,2028.3,2028.2,0.99334722]
[1743064467081,3.72302,2028.3,2028.2,0.99334722]
[1743064468384,2.35172,2028.3,2028.2,0.99334722]
[1743064470684,2.35172,2028.3,2028.2,0.99337722]
[1743064470988,5.50072,2028.3,2028.2,0.00740722]
[1743064471179,5.50072,2028.3,2028.2,0.99337722]
[1743064471984,5.50072,2028.3,2028.2,0.00740722]
[1743064475187,0.98612,2027.9,2027.8,41.78614]
[1743064475887,2.41552,2027.9,2027.8,41.78614]
[1743064476187,0.98622,2027.7,2027.6,0.99364722]
[1743064476390,7.34302,2027.7,2027.6,0.00740722]
[1743064476690,7.34302,2027.7,2027.0,2.46639]
[1743064476691,0.98646,2027.2,2027.1,2.41587]
[1743064476878,0.98646,2027.2,2027.1,0.98647]
[1743064477393,0.98651,2027.1,2027.0,46.34032]
[1743064477593,0.98651,2027.1,2027.0,5.54032]
[1743064477792,2.4104,2027.2,2027.1,0.98651]
[1743064485890,1.4239,2027.2,2027.1,0.98651]
[1743064486698,2.41036,2027.2,2027.1,0.98651]
[1743064487399,1.4239,2027.2,2027.1,0.98651]
[1743064487901,2.41036,2027.2,2027.1,0.98651]
[1743064488798,2.41036,2027.2,2027.1,2.30461]
[1743064492799,0.00740722,2027.3,2027.2,0.98646]
[1743064492997,0.00740722,2027.3,2027.2,2.36836]
[1743064494208,4.6184,2027.7,2027.6,0.98626]
[1743064494405,0.98621,2027.8,2027.7,0.98617]
[1743064494602,2.36591,2027.8,2027.7,0.98617]
[1743064495103,2.36591,2027.8,2027.7,2.42037]
[1743064497205,2.36591,2027.8,2027.7,1.4342]
[1743064497511,2.36591,2027.8,2027.7,2.42042]
[1743064498009,2.36591,2027.8,2027.7,1.4342]
[1743064498210,2.36591,2027.8,2027.7,2.42042]
[1743064501404,0.98639,2027.5,2027.3,0.98636]
[1743064501610,0.98641,2027.4,2027.3,2.31756]
[1743064501811,2.38191,2027.4,2027.3,2.31756]
[1743064502212,1.3955,2027.4,2027.3,2.31756]
[1743064502410,2.38186,2027.4,2027.3,2.31756]
[1743064503413,5.53086,2027.4,2027.3,2.31756]
[1743064503619,4.5445,2027.4,2027.3,2.31756]
[1743064503806,1.337,2027.6,2027.3,2.31756]
[1743064503807,1.337,2027.6,2027.3,1.3312]
[1743064504011,3.149,2027.6,2027.5,0.98631]
[1743064504213,0.98623,2027.7,2027.6,0.98626]
[1743064505015,2.42173,2027.7,2027.6,0.98626]
[1743064505525,1.4355,2027.7,2027.6,0.98626]
[1743064505909,2.42172,2027.7,2027.6,0.98626]
[1743064508819,1.4355,2027.7,2027.6,0.98626]
[1743064509020,2.42172,2027.7,2027.6,0.98626]
[1743064509217,3.2078,2027.8,2027.7,0.98622]
[1743064510015,3.2078,2027.8,2027.7,1.64702]
[1743064510315,1.3637,2027.9,2027.8,0.98617]
[1743064510516,1.3637,2027.9,2027.8,3.08037]
[1743064512920,0.99350722,2028.0,2027.8,3.08037]
[1743064512921,0.99350722,2028.0,2027.9,0.98612]
[1743064513116,2.35770722,2028.0,2027.9,2.38292]
[1743064514223,1.37160722,2028.0,2027.9,2.38292]
[1743064514523,2.35767722,2028.0,2027.9,2.38292]
[1743064515515,1.37160722,2028.0,2027.9,2.38292]
[1743064515716,2.35767722,2028.0,2027.9,2.38292]
[1743064516817,0.00740722,2028.0,2027.9,2.38292]
[1743064517020,2.42177722,2028.0,2027.9,2.38292]
[1743064517216,1.43570722,2028.0,2027.9,2.38292]
[1743064518218,0.98617,2027.8,2027.7,0.98617]
[1743064518627,0.98622,2027.7,2027.6,0.98622]
[1743064518832,3.10352,2027.7,2027.6,0.98622]
[1743064519323,0.98626,2027.6,2027.5,0.98628]
[1743064519525,3.08466,2027.6,2027.5,0.98628]
[1743064521021,6.29246,2027.6,2027.5,0.98628]
[1743064524230,9.44146,2027.6,2027.5,0.98628]
[1743064524534,0.98631,2027.5,2027.4,2.37151]
[1743064524830,0.98641,2027.4,2027.3,0.9864]
[1743064525223,2.34701,2027.4,2027.3,0.9864]
[1743064525619,2.34701,2027.4,2027.3,2.3558]
[1743064526126,2.34701,2027.4,2027.3,1.3694]
[1743064526331,0.98646,2027.2,2027.1,4.19427]
[1743064526525,0.98646,2027.2,2027.1,5.56367]
[1743064527028,2.34706,2027.2,2027.1,5.56367]
[1743064527324,2.34706,2027.2,2027.1,4.5772]
[1743064527527,2.34706,2027.2,2027.1,3.2078]
[1743064528125,2.34706,2027.2,2027.1,4.5304]
[1743064528629,2.34706,2027.2,2027.1,5.51691]
[1743064529725,1.3606,2027.2,2027.1,5.51691]
[1743064529925,4.79404,2027.3,2027.2,0.98646]
[1743064530128,1.64504,2027.3,2027.2,2.30906]
[1743064530332,4.79404,2027.3,2027.2,3.68756]
[1743064530532,4.13544,2027.3,2027.2,3.68756]
[1743064532033,3.149,2027.3,2027.2,3.68756]
[1743064532230,4.84194,2027.5,2027.4,0.98636]
[1743064532533,6.19714,2027.5,2027.4,0.98636]
[1743064535537,5.2108,2027.5,2027.4,0.98636]
[1743064535725,6.19711,2027.5,2027.4,0.98636]
[1743064536123,5.2108,2027.5,2027.4,0.98636]
[1743064536343,6.19711,2027.5,2027.4,0.98636]
[1743064537834,5.2108,2027.5,2027.4,0.98636]
[1743064538035,6.19711,2027.5,2027.4,0.98636]
[1743064538434,5.2108,2027.5,2027.4,0.98636]
[1743064538635,6.19711,2027.5,2027.4,0.98636]
[1743064538838,5.2108,2027.5,2027.4,0.98636]
[1743064539040,3.15,2027.5,2027.4,0.98636]
[1743064540441,1.3188,2027.6,2027.5,0.98631]
[1743064540641,4.5266,2027.6,2027.5,0.98631]
[1743064541347,5.51286,2027.6,2027.5,1.69181]
[1743064543648,4.5266,2027.6,2027.5,1.69181]
[1743064544052,3.2078,2027.6,2027.5,1.69181]
[1743064544252,3.15,2027.7,2027.6,0.98626]
[1743064544253,4.13622,2027.7,2027.6,0.98626]
[1743064544450,4.13622,2027.7,2027.6,2.29256]
[1743064544653,3.15,2027.7,2027.6,2.29256]
[1743064545252,4.13622,2027.7,2027.6,2.29256]
[1743064545744,3.15,2027.7,2027.6,2.29256]
[1743064545951,4.13622,2027.7,2027.6,2.29256]
[1743064548953,0.6977,2027.9,2027.8,0.98617]
[1743064549255,0.00740722,2028.0,2027.9,0.98612]
[1743064549449,0.99347722,2028.0,2027.9,0.98612]
[1743064549752,0.00740722,2028.0,2027.9,0.98612]
[1743064549956,0.00740722,2028.0,2027.9,2.40352]
[1743064551754,0.00740722,2028.0,2027.9,5.61132]
[1743064551950,7.34268,2028.4,2028.3,0.98592]
[1743064552144,6.3568,2028.4,2028.3,0.98592]
[1743064552349,3.2078,2028.4,2028.3,0.98592]
[1743064552753,4.13478,2028.6,2028.5,0.98583]
[1743064553147,3.149,2028.6,2028.5,0.98583]
[1743064553559,3.149,2028.6,2028.5,1.64273]
[1743064553962,4.13478,2028.6,2028.5,1.64273]
[1743064554863,3.149,2028.6,2028.5,1.64273]
[1743064555164,4.13478,2028.6,2028.5,1.64273]
[1743064556164,0.98583,2028.5,2028.4,1.4055]
[1743064556464,0.98588,2028.4,2028.3,0.00740722]
[1743064556664,4.19368,2028.4,2028.3,0.00740722]
[1743064558876,5.50118,2028.4,2028.3,0.00740722]
[1743064561576,5.50118,2028.4,2028.3,0.99332722]
[1743064561777,7.6653,2028.4,2028.3,0.99332722]
[1743064562772,3.8712,2028.7,2028.3,0.00740722]
[1743064562972,1.3023,2028.6,2028.5,0.98578]
[1743064563172,1.3023,2028.6,2028.5,3.03528]
[1743064563872,2.28808,2028.6,2028.5,3.03528]
[1743064564478,2.28808,2028.6,2028.5,1.3835]
[1743064564681,2.28808,2028.6,2028.5,2.36933]
[1743064565183,1.3023,2028.6,2028.5,2.36933]
[1743064565386,4.4543,2028.6,2028.5,2.36933]
[1743064565676,3.8712,2028.7,2028.6,0.98578]
[1743064565882,6.18383,2028.7,2028.6,2.31908]
[1743064566077,5.1981,2028.7,2028.6,2.31908]
[1743064566275,6.18383,2028.7,2028.6,2.31908]
[1743064566484,6.18383,2028.7,2028.6,1.3333]
[1743064566784,0.98583,2028.5,2028.4,1.69724]
[1743064566986,0.98583,2028.5,2028.4,3.03054]
[1743064567283,2.31272,2028.6,2028.5,0.98583]
[1743064567484,8.00997,2028.7,2028.6,0.98578]
[1743064567680,8.69737,2028.7,2028.6,0.98578]
[1743064569879,0.98578,2028.6,2028.5,2.35259]
[1743064570087,2.33658,2028.6,2028.5,2.35259]
[1743064570986,6.3608,2028.7,2028.6,0.98578]
[1743064571185,6.3608,2028.7,2028.6,2.29948]
[1743064571387,7.34653,2028.7,2028.6,2.29948]
[1743064571883,8.76503,2028.7,2028.6,2.29948]
[1743064573581,0.00740722,2028.8,2028.7,0.98573]
[1743064573790,0.00740722,2028.8,2028.7,3.72673]
[1743064574280,0.98553,2029.2,2028.7,3.72673]
[1743064574281,0.98551,2029.2,2028.8,2.46414]
[1743064574587,2.35211,2029.2,2029.1,0.9855]
[1743064575085,2.35211,2029.2,2029.0,2.35164]
[1743064575086,0.98556,2029.1,2029.0,2.35164]
[1743064575287,1.3666,2029.1,2029.0,3.03074]
[1743064576981,5.48136722,2029.3,2029.2,0.98549]
[1743064577286,6.11236722,2029.3,2029.2,0.98549]
[1743064577682,2.95236722,2029.3,2029.2,2.29789]
[1743064577884,0.00740722,2029.3,2029.2,2.29789]
[1743064578283,0.99284722,2029.3,2029.2,2.29789]
[1743064578587,0.00740722,2029.3,2029.2,2.29789]
[1743064579383,1.30860722,2029.3,2029.2,2.29789]
[1743064579582,2.29404722,2029.3,2029.2,2.29789]
[1743064580181,1.30860722,2029.3,2029.2,2.29789]
[1743064580480,0.00740722,2029.3,2029.2,2.29789]
[1743064580985,0.99284722,2029.3,2029.2,2.29789]
[1743064581674,0.00740722,2029.3,2029.2,2.29789]
[1743064581889,0.99284722,2029.3,2029.2,2.29789]
[1743064582387,2.38414722,2029.3,2029.2,2.29789]
[1743064593601,1.39870722,2029.3,2029.2,2.29789]
[1743064593788,2.38414722,2029.3,2029.2,2.29789]
[1743064594184,1.39870722,2029.3,2029.2,2.29789]
[1743064594683,0.00740722,2029.3,2029.2,2.29789]
[1743064594895,0.99284722,2029.3,2029.2,2.29789]
[1743064595386,2.42654722,2029.3,2029.2,2.29789]
[1743064598495,1.44110722,2029.3,2029.2,2.29789]
[1743064599897,2.42654722,2029.3,2029.2,2.29789]
[1743064600293,1.44110722,2029.3,2029.2,2.29789]
[1743064600497,2.42654722,2029.3,2029.2,2.29789]
[1743064604001,3.13024722,2029.3,2029.2,2.29789]
[1743064610510,2.42654722,2029.3,2029.2,2.29789]
[1743064610709,0.00740722,2029.3,2029.2,4.25789]
[1743064611005,0.00740722,2029.3,2029.2,4.45789]
[1743064611204,0.00740722,2029.3,2029.2,43.09789]
[1743064611510,0.00740722,2029.3,2029.2,45.42789]
[1743064611706,0.00740722,2029.3,2029.2,43.09789]
[1743064617017,0.99284722,2029.3,2029.2,2.29789]
[1743064617316,3.73764722,2029.3,2029.2,2.29789]
[1743064619117,1.35250722,2029.3,2029.2,2.29789]
[1743064619518,2.33794722,2029.3,2029.2,2.29789]
[1743064621214,2.33794722,2029.3,2029.2,1.3124]
[1743064622210,2.33794722,2029.3,2029.2,2.29789]
[1743064622623,0.99284722,2029.3,2029.2,2.29789]
[1743064623118,0.00740722,2029.3,2029.2,2.29789]
[1743064623422,0.99284722,2029.3,2029.2,2.29789]
[1743064623615,2.35694722,2029.3,2029.2,2.29789]
[1743064624509,0.00740722,2029.3,2029.2,2.29789]
[1743064625413,0.00740722,2029.3,2029.2,4.30789]
[1743064625615,0.00740722,2029.3,2029.2,4.79789]
[1743064625814,0.98514,2030.0,2029.3,2.4636]
[1743064626015,1.3075,2029.9,2029.8,0.98515]
[1743064626211,2.29265,2029.9,2029.8,2.986]
[1743064626515,2.29265,2029.9,2029.8,1.3278]
[1743064628820,1.3075,2029.9,2029.8,2.313]
[1743064629117,2.29265,2029.9,2029.8,2.313]
[1743064629419,1.3075,2029.9,2029.8,2.313]
[1743064630816,2.29265,2029.9,2029.8,2.313]
[1743064631018,2.29265,2029.9,2029.7,3.9189]
[1743064631019,0.98523,2029.8,2029.7,0.98521]
[1743064631210,0.98517,2029.9,2029.8,0.98515]
[1743064631415,2.32517,2029.9,2029.8,0.98515]
[1743064631619,2.32517,2029.9,2029.8,1.65835]
[1743064632819,1.34,2029.9,2029.8,1.65835]
[1743064633020,4.20029722,2030.1,2030.0,0.9851]
[1743064633212,4.1977152,2030.1,2030.0,0.9851]
[1743064634218,5.5377152,2030.1,2030.0,1.3773]
[1743064635027,5.5377152,2030.1,2030.0,2.3624]
[1743064635613,0.98515,2029.9,2029.8,1.65837]
[1743064635819,0.98515,2029.9,2029.8,2.95328798]
[1743064636217,1.65355,2029.9,2029.8,2.95328798]
[1743064636433,0.6684,2029.9,2029.8,2.95328798]
[1743064636632,1.3619,2030.0,2029.9,0.98515]
[1743064636824,1.3619,2030.0,2029.9,2.28265]
[1743064637128,2.347,2030.0,2029.9,2.28265]
[1743064637324,2.347,2030.0,2029.9,1.2975]
[1743064638236,0.98523,2029.8,2029.7,0.98522]
[1743064638437,3.06799,2029.9,2029.8,0.9852]
[1743064638925,1.3696,2029.9,2029.8,1.64]
[1743064639131,1.3696,2029.9,2029.8,2.3529]
[1743064640630,3.9258252,2030.1,2030.0,0.9851]
[1743064640825,3.92324318,2030.1,2030.0,0.9851]
[1743064641031,4.90832318,2030.1,2030.0,0.9851]
[1743064641232,0.98522,2029.8,2029.7,0.98518]
[1743064641433,0.98522,2029.8,2029.7,0.98259798]
[1743064642436,2.33102,2029.8,2029.7,0.98259798]
[1743064644033,0.98524,2029.7,2029.6,1.32570722]
[1743064644334,5.49544,2029.7,2029.6,0.00740722]
[1743064651544,0.98539,2029.4,2029.3,2.30584]
[1743064651843,4.19319,2029.4,2029.3,2.30584]
[1743064652043,7.33919,2029.4,2029.3,1.3204]
[1743064652244,0.98549,2029.2,2029.1,0.98553]
[1743064653453,2.32679,2029.2,2029.1,2.37533]
[1743064655647,1.3413,2029.2,2029.1,2.37533]
[1743064655848,3.06827,2029.3,2029.2,0.98549]
[1743064656044,3.06827,2029.3,2029.2,2.39709]
[1743064656651,7.33922,2029.4,2029.3,0.98544]
[1743064656851,8.71972,2029.4,2029.3,3.08304]
[1743064657747,8.71972,2029.4,2029.3,1.4116]
[1743064658055,8.71972,2029.4,2029.3,2.39704]
[1743064658254,8.71972,2029.4,2029.3,1.4116]
[1743064658647,8.71972,2029.4,2029.3,2.39704]
[1743064658843,8.71972,2029.4,2029.3,1.4116]
[1743064659657,8.71972,2029.4,2029.3,2.39704]
[1743064659843,4.19322,2029.4,2029.3,2.39704]
[1743064660546,5.56312,2029.4,2029.3,2.39704]
[1743064661542,5.56312,2029.4,2029.3,1.4116]
[1743064661850,5.56312,2029.4,2029.3,2.39704]
[1743064664354,6.24612,2029.4,2029.3,2.39704]
[1743064665055,6.24612,2029.4,2029.3,1.4116]
[1743064665956,6.24612,2029.4,2029.3,2.39704]
[1743064666555,6.24612,2029.4,2029.3,1.4116]
[1743064666756,6.24612,2029.4,2029.3,2.39704]
[1743064666959,6.24612,2029.4,2029.3,1.4116]
[1743064667150,6.24612,2029.4,2029.3,2.39704]
[1743064667757,5.56312,2029.4,2029.3,2.39704]
[1743064670561,4.19319,2029.4,2029.3,2.39704]
[1743064671152,5.50059,2029.4,2029.3,2.39704]
[1743064672056,5.50059,2029.4,2029.3,1.4116]
[1743064672266,5.50059,2029.4,2028.9,0.00740722]
[1743064672267,0.98558,2029.0,2028.9,0.00740722]
[1743064672460,7.35138,2029.0,2028.9,2.31233722]
[1743064673355,8.65878,2029.0,2028.9,2.31233722]
[1743064674657,6.3658,2029.0,2028.9,2.31233722]
[1743064674862,3.2078,2029.0,2028.9,2.31233722]
[1743064680454,4.19338,2029.0,2028.9,2.31233722]
[1743064680763,4.6416,2029.0,2028.9,2.31233722]
[1743064681266,3.2078,2029.0,2028.9,43.11233722]
[1743064681970,1.4338,2029.3,2029.2,0.98549]
[1743064682466,2.41924,2029.3,2029.2,0.98549]
[1743064683267,1.4338,2029.3,2029.2,0.98549]
[1743064684766,2.41924,2029.3,2029.2,0.98549]